fUSD/lending_fUSD_20240517
["ID","MTS","AMOUNT","RATE_DAILY","PERIOD"]
[327301440,1715975443769,-500.0,0.00012999,2]
[327301441,1715975443781,-500.0,0.00012999,2]
[327301442,1715975443791,-500.0,0.00012999,2]
[327301443,1715975443800,-500.0,0.00012999,2]
[327301444,1715975443810,-475.19,0.00012999,2]
[327301445,1715975443820,-500.0,0.00012999,2]
[327301446,1715975443830,-500.0,0.00012999,2]
[327301447,1715975443840,-500.0,0.00012999,2]
[327301448,1715975443850,-500.0,0.00012999,2]
[327301449,1715975443860,-500.0,0.00012999,2]
[327301450,1715975443871,-500.0,0.00012999,2]
[327301451,1715975443881,-500.0,0.00012999,2]
[327301452,1715975443890,-500.0,0.00012999,2]
[327301453,1715975443943,-500.0,0.00012999,2]
[327301454,1715975443952,-500.0,0.00012999,2]
[327301455,1715975443961,-511.59,0.00012999,2]
[327301456,1715975443970,-500.0,0.00012999,2]
[327301457,1715975443979,-500.0,0.00012999,2]
[327301458,1715975443989,-500.0,0.00012999,2]
[327301459,1715975443999,-500.0,0.00012999,2]
[327301460,1715975444008,-500.0,0.00012999,2]
[327301461,1715975444018,-500.0,0.00012999,2]
[327301462,1715975444030,-500.0,0.00012999,2]
[327301463,1715975444040,-500.0,0.00012999,2]
[327301464,1715975444050,-500.0,0.00012999,2]
[327301465,1715975444059,-387.44,0.00012999,2]
[327301466,1715975444069,-500.0,0.00012999,2]
[327301467,1715975444078,-500.0,0.00012999,2]
[327301468,1715975444087,-500.0,0.00012999,2]
[327301469,1715975444096,-500.0,0.00012999,2]
[327301470,1715975444106,-500.0,0.00012999,2]
[327301471,1715975444116,-500.0,0.00012999,2]
[327301472,1715975444125,-155.19,0.00012999,2]
[327301473,1715975444135,-500.0,0.00012999,2]
[327301474,1715975444145,-430.46,0.00012999,2]
[327301475,1715975444155,-500.0,0.00012999,2]
[327301476,1715975444164,-500.0,0.00012999,2]
[327301477,1715975444174,-500.0,0.00012999,2]
[327301478,1715975444184,-500.0,0.00012999,2]
[327301479,1715975444194,-500.0,0.00012999,2]
[327301480,1715975444203,-500.0,0.00012999,2]
[327301481,1715975444212,-500.0,0.00012999,2]
[327301482,1715975444221,-332.81,0.00012999,2]
[327301483,1715975444230,-437.77286345,0.00012999,2]
[327301484,1715975444239,-500.0,0.00012999,2]
[327301485,1715975444248,-500.0,0.00012999,2]
[327301486,1715975444257,-500.0,0.00012999,2]
[327301487,1715975444266,-492.09,0.00012999,2]
[327301488,1715975444275,-500.0,0.00012999,2]
[327301489,1715975444284,-500.0,0.00012999,2]
[327301490,1715975444293,-470.16,0.00012999,2]
[327301491,1715975444302,-500.0,0.00012999,2]
[327301492,1715975444312,-374.71,0.00012999,2]
[327301493,1715975444321,-500.0,0.00012999,2]
[327301494,1715975444330,-178.87,0.00012999,2]
[327301495,1715975444339,-500.0,0.00012999,2]
[327301496,1715975444349,-500.0,0.00012999,2]
[327301497,1715975444358,-500.0,0.00012999,2]
[327301498,1715975444367,-500.0,0.00012999,2]
[327301499,1715975444376,-500.0,0.00012999,2]
[327301500,1715975444390,-500.0,0.00012999,2]
[327301501,1715975444399,-500.0,0.00012999,2]
[327301502,1715975444408,-265.28,0.00012999,2]
[327301503,1715975444418,-500.0,0.00012999,2]
[327301504,1715975444430,-500.0,0.00012999,2]
[327301505,1715975444440,-500.0,0.00012999,2]
[327301506,1715975444450,-500.0,0.00012999,2]
[327301507,1715975444461,-500.0,0.00012999,2]
[327301508,1715975444471,-500.0,0.00012999,2]
[327301509,1715975444480,-500.0,0.00012999,2]
[327301510,1715975444489,-500.0,0.00012999,2]
[327301511,1715975444499,-500.0,0.00012999,2]
[327301512,1715975444508,-500.0,0.00012999,2]
[327301513,1715975444518,-500.0,0.00012999,2]
[327301514,1715975444527,-500.0,0.00012999,2]
[327301515,1715975444536,-500.0,0.00012999,2]
[327301516,1715975444546,-329.61740967,0.00012999,2]
[327301517,1715975444557,-500.0,0.00012999,2]
[327301518,1715975444566,-500.0,0.00012999,2]
[327301519,1715975444576,-500.0,0.00012999,2]
[327301520,1715975444586,-500.0,0.00012999,2]
[327301521,1715975444595,-645.49,0.00012999,2]
[327301522,1715975444605,-500.0,0.00012999,2]
[327301523,1715975444614,-500.0,0.00012999,2]
[327301524,1715975444623,-500.0,0.00012999,2]
[327301525,1715975444633,-500.0,0.00012999,2]
[327301526,1715975444642,-500.0,0.00012999,2]
[327301527,1715975444653,-500.0,0.00012999,2]
[327301528,1715975444662,-208.13983695,0.00012999,2]
[327301529,1715975444672,-500.0,0.00012999,2]
[327301530,1715975444681,-500.0,0.00012999,2]
[327301531,1715975444690,-500.0,0.00012999,2]
[327301532,1715975444699,-500.0,0.00012999,2]
[327301533,1715975444709,-435167.52013855,0.00013,2]
[327301534,1715975444720,-56411.20638725,0.00013,2]
[327301535,1715975444924,-157949.38439648,0.00013,2]
[327301536,1715975444937,-1097.99007216,0.00013,2]
[327301537,1715975444950,-1844.76519213,0.00013,2]
[327301538,1715975444960,-527.14081138,0.00013,2]
[327301539,1715975445022,-499.99,0.0001179,2]
[327301540,1715975445032,-304.91605974,0.00013,2]
[327301541,1715975445045,-8395.15138,0.00013,2]
[327301542,1715975445057,-380.35177172,0.00013,2]
[327301543,1715975445069,-65964.64431528,0.00013,2]
[327301544,1715975445087,-80819.03744059,0.00013,2]
[327301545,1715975445100,-32007.14856468,0.00013,2]
[327301546,1715975445114,-5750.4332548,0.00013,2]
[327301547,1715975445252,-620.36949781,0.000128,2]
[327301548,1715975445263,-1213.39210882,0.000128,2]
[327301549,1715975445274,-1021.71644286,0.000128,2]
[327301550,1715975445286,-831.02421482,0.000128,2]
[327301551,1715975445301,-365.0,0.000128,2]
[327301552,1715975445315,-5948.49773569,0.000128,2]
[327301553,1715975445326,-34753.50637618,0.00013,2]
[327301556,1715975445793,-33202.75226753,0.00013,2]
[327301557,1715975445866,-507392.8544372,0.00013,2]
[327301558,1715975445876,-287007.34974482,0.00013,2]
[327301559,1715975445886,-1500.0,0.00013,5]
[327301560,1715975445896,-136565.26536424,0.00013,2]
[327301561,1715975445931,-5363.79,0.00013,2]
[327301562,1715975445998,-275.37278317,0.00012999,2]
[327301563,1715975446007,-1028.51494326,0.00013,2]
[327301564,1715975446019,-6726.47935296,0.00013,2]
[327301643,1715976631815,-281.78392074,9.042e-05,2]
[327301645,1715976631828,-150.0,9.042e-05,2]
[327301647,1715976631838,-7870.53714408,9.042e-05,2]
[327301651,1715976631928,-260.45990438,9.042e-05,2]
[327301652,1715976631937,-330.33818466,9.042e-05,2]
[327301653,1715976631946,-581.40677926,9.043e-05,2]
[327301654,1715976631956,-155.79,9.045e-05,2]
[327301655,1715976631965,-192.79,9.059e-05,2]
[327301656,1715976631974,-280.44,9.388e-05,2]
[327301657,1715976631983,-164.06481568,0.00011056,2]
[327301658,1715976631993,-431.65,0.00011281,2]
[327301659,1715976632002,-1438.76,0.00011306,2]
[327301660,1715976632011,-473.3,0.00011306,2]
[327301661,1715976632020,-150.0,0.00011324,2]
[327301662,1715976632030,-178.74,0.0001134,2]
[327301663,1715976632039,-882.98249872,0.00011376,2]
[327301664,1715976632048,-20981.27,0.00011377,2]
[327301665,1715976632058,-250.0,0.0001138,2]
[327301666,1715976632067,-250.0,0.00011395,2]
[327301667,1715976632075,-168.3,0.00011489,2]
[327301668,1715976632085,-189.95,0.00011524,2]
[327301669,1715976632094,-4524.6215,0.00011557,2]
[327301670,1715976632103,-560.0,0.00011564,2]
[327301671,1715976632112,-280.44,0.00011652,2]
[327301672,1715976632122,-164.06481565,0.0001167,2]
[327301673,1715976632131,-326.57681908,0.00011671,2]
[327301674,1715976632140,-1063.44051398,0.00011671,2]
[327301675,1715976632149,-1380.16157324,0.00011671,2]
[327301676,1715976632158,-1364.74024267,0.00011671,2]
[327301677,1715976632167,-409.53251773,0.00011672,2]
[327301678,1715976632176,-155.0,0.00011789,2]
[327301679,1715976632185,-4881.38756574,0.00012,2]
[327301680,1715976632195,-150.27,0.0001224,2]
[327301681,1715976632204,-164.06481565,0.00012285,2]
[327301683,1715976632213,-174.994551,0.00012311,2]
[327301685,1715976632222,-277.99598476,0.00012349,2]
[327301687,1715976632232,-150.0,0.00012425,2]
[327301689,1715976632241,-150.0,0.00012425,2]
[327301691,1715976632250,-150.33,0.00012425,2]
[327301693,1715976632260,-150.0,0.00012425,2]
[327301695,1715976632269,-500.0,0.00012427,2]
[327301697,1715976632278,-500.0,0.00012436,2]
[327301699,1715976632287,-500.0,0.00012445,2]
[327301701,1715976632296,-500.0,0.00012453,2]
[327301703,1715976632305,-500.0,0.00012462,2]
[327301705,1715976632314,-500.0,0.00012471,2]
[327301706,1715976632323,-500.0,0.0001248,2]
[327301708,1715976632332,-500.0,0.00012489,2]
[327301711,1715976632341,-500.0,0.00012497,2]
[327301713,1715976632351,-500.0,0.00012506,2]
[327301715,1715976632360,-500.0,0.00012515,2]
[327301716,1715976632369,-500.0,0.00012524,2]
[327301718,1715976632379,-500.0,0.00012533,2]
[327301721,1715976632388,-500.0,0.00012541,2]
[327301722,1715976632397,-500.0,0.0001255,2]
[327301723,1715976632406,-500.0,0.00012559,2]
[327301724,1715976632415,-500.0,0.00012568,2]
[327301725,1715976632426,-500.0,0.00012577,2]
[327301726,1715976632435,-500.0,0.00012585,2]
[327301727,1715976632444,-500.0,0.00012594,2]
[327301728,1715976632453,-500.0,0.00012602,2]
[327301729,1715976632648,-500.0,0.00012602,2]
[327301730,1715976632672,-500.0,0.00012603,2]
[327301731,1715976632681,-500.0,0.00012612,2]
[327301732,1715976632691,-500.0,0.00012621,2]
[327301733,1715976632700,-500.0,0.00012629,2]
[327301734,1715976632709,-500.0,0.00012638,2]
[327301735,1715976632719,-500.0,0.00012647,2]
[327301736,1715976632729,-1000.0,0.000127,2]
[327301737,1715976632738,-1000.0,0.000127,3]
[327301738,1715976632752,-1000.0,0.000127,3]
[327301739,1715976632762,-1000.0,0.000127,2]
[327301740,1715976632771,-1000.0,0.000127,2]
[327301741,1715976632780,-1000.0,0.000127,2]
[327301742,1715976632791,-1000.0,0.000127,2]
[327301743,1715976632800,-1000.0,0.000127,2]
[327301744,1715976632810,-503.0,0.000127,2]
[327301745,1715976632823,-473.3,0.00012719,2]
[327301746,1715976632833,-2603.99957143,0.0001274,2]
[327301747,1715976632843,-804.7,0.00012758,2]
[327301748,1715976632852,-869.2,0.0001276,2]
[327301749,1715976632861,-415.3,0.0001276,2]
[327301750,1715976632871,-1455.99,0.0001276,2]
[327301751,1715976632880,-415.22,0.0001276,2]
[327301752,1715976632889,-1000.0,0.000128,2]
[327301753,1715976632898,-52319.72499176,0.000128,2]
[327301754,1715976632908,-13169.62281841,0.000128,2]
[327301755,1715976632918,-500.0,0.00012814,2]
[327301756,1715976632928,-1930.4848,0.00012814,2]
[327301757,1715976632937,-14652.12647252,0.00012858,2]
[327301758,1715976632950,-3588.27117866,0.00012858,2]
[327301759,1715976632961,-711.72882134,0.00012858,2]
[327301760,1715976632981,-447.78112382,0.00012858,2]
[327301761,1715976632992,-316.0,0.00012858,2]
[327301762,1715976633013,-4400.0,0.00012858,2]
[327301763,1715976633024,-3445.55880682,0.00012858,2]
[327301784,1715976637951,-699.08377825,0.000126,2]
[327301785,1715976637964,-300.91622175,0.000126,2]
[327301786,1715976637974,-25302.53359684,0.00012858,2]
[327301787,1715976637986,-4895.0,0.00012858,2]
[327301788,1715976637998,-200.0,0.00012896,2]
[327301789,1715976638008,-1000.0,0.00012896,2]
[327301790,1715976638017,-500.0,0.00012896,2]
[327301791,1715976638026,-10000.0,0.00012899,2]
[327301792,1715976638035,-164.06481565,0.00012899,2]
[327301793,1715976638045,-155.74380215,0.000129,2]
[327301794,1715976638055,-7109.13182852,0.000129,2]
[327301795,1715976638065,-155.19873689,0.000129,2]
[327301796,1715976638075,-10904.92504054,0.000129,2]
[327301797,1715976638084,-429.81,0.00012913,2]
[327301798,1715976638094,-500.0,0.00012914,2]
[327301799,1715976638104,-500.0,0.00012914,2]
[327301800,1715976638114,-500.0,0.00012914,2]
[327301801,1715976638123,-500.0,0.00012914,2]
[327301802,1715976638134,-500.0,0.00012914,2]
[327301803,1715976638143,-500.0,0.00012914,2]
[327301804,1715976638153,-632.26,0.00012914,2]
[327301805,1715976638162,-500.0,0.00012914,2]
[327301806,1715976638172,-500.0,0.00012914,2]
[327301807,1715976638181,-500.0,0.00012914,2]
[327301808,1715976638191,-500.0,0.00012914,2]
[327301809,1715976638201,-500.0,0.00012914,2]
[327301810,1715976638211,-500.0,0.00012914,2]
[327301811,1715976638220,-500.0,0.00012914,2]
[327301812,1715976638232,-500.0,0.00012914,2]
[327301813,1715976638241,-500.0,0.00012914,2]
[327301814,1715976638250,-500.0,0.00012914,2]
[327301815,1715976638259,-500.0,0.00012914,2]
[327301816,1715976638268,-500.0,0.00012914,2]
[327301817,1715976638278,-500.0,0.00012914,2]
[327301818,1715976638288,-500.0,0.00012914,2]
[327301819,1715976638297,-595.26,0.00012914,2]
[327301820,1715976638307,-500.0,0.00012914,2]
[327301821,1715976638317,-500.0,0.00012914,2]
[327301822,1715976638326,-500.0,0.00012914,2]
[327301823,1715976638335,-500.0,0.00012914,2]
[327301824,1715976638345,-500.0,0.00012914,2]
[327301825,1715976638354,-500.0,0.00012914,2]
[327301826,1715976638364,-515.96511261,0.00012914,2]
[327301827,1715976638373,-500.0,0.00012914,2]
[327301828,1715976638383,-500.0,0.00012914,2]
[327301829,1715976638392,-500.0,0.00012914,2]
[327301830,1715976638402,-500.0,0.00012914,2]
[327301831,1715976638411,-500.0,0.00012914,2]
[327301832,1715976638421,-500.0,0.00012914,2]
[327301833,1715976638431,-500.0,0.00012914,2]
[327301834,1715976638440,-500.0,0.00012914,2]
[327301835,1715976638450,-473.9,0.00012914,2]
[327301836,1715976638459,-500.0,0.00012914,2]
[327301837,1715976638469,-500.0,0.00012914,2]
[327301838,1715976638478,-500.0,0.00012914,2]
[327301839,1715976638488,-500.0,0.00012914,2]
[327301840,1715976638497,-500.0,0.00012914,2]
[327301841,1715976638507,-500.0,0.00012914,2]
[327301842,1715976638516,-500.0,0.00012914,2]
[327301843,1715976638526,-500.0,0.00012914,2]
[327301844,1715976638535,-500.0,0.00012914,2]
[327301845,1715976638545,-598.29,0.00012914,2]
[327301846,1715976638555,-500.0,0.00012914,2]
[327301847,1715976638564,-500.0,0.00012914,2]
[327301849,1715976638574,-500.0,0.00012914,2]
[327301850,1715976638583,-500.0,0.00012914,2]
[327301852,1715976638593,-500.0,0.00012914,2]
[327301854,1715976638602,-500.0,0.00012914,2]
[327301856,1715976638612,-500.0,0.00012914,2]
[327301858,1715976638621,-500.0,0.00012914,2]
[327301860,1715976638630,-500.0,0.00012914,2]
[327301862,1715976638639,-500.0,0.00012914,2]
[327301864,1715976638648,-500.0,0.00012914,2]
[327301866,1715976638658,-500.0,0.00012914,2]
[327301868,1715976638667,-500.0,0.00012914,2]
[327301870,1715976638676,-500.0,0.00012914,2]
[327301872,1715976638686,-500.0,0.00012914,2]
[327301874,1715976638695,-500.0,0.00012914,2]
[327301876,1715976638705,-500.0,0.00012914,2]
[327301878,1715976638714,-500.0,0.00012914,2]
[327301880,1715976638723,-500.0,0.00012914,2]
[327301882,1715976638734,-500.0,0.00012914,2]
[327301883,1715976638746,-500.0,0.00012914,2]
[327301886,1715976638756,-500.0,0.00012914,2]
[327301887,1715976638766,-500.0,0.00012914,2]
[327301889,1715976638775,-500.0,0.00012914,2]
[327301891,1715976638786,-500.0,0.00012914,2]
[327301893,1715976638796,-150.0,0.00012915,2]
[327301895,1715976638805,-2081.451,0.00012915,2]
[327301897,1715976638814,-970.257,0.00012915,2]
[327301899,1715976638823,-1393.818,0.00012915,2]
[327301901,1715976638835,-305.939,0.00012915,2]
[327301903,1715976638845,-439.0,0.00012915,2]
[327301905,1715976638854,-439.0,0.00012915,2]
[327301907,1715976638863,-2393.0,0.00012915,2]
[327301909,1715976638872,-1647.0,0.00012915,2]
[327301911,1715976638882,-215.0,0.00012915,2]
[327301913,1715976638891,-1137.0,0.00012915,2]
[327301915,1715976638900,-3106.267,0.00012915,2]
[327301917,1715976638909,-275.0,0.00012915,2]
[327301919,1715976638918,-5753.0,0.00012915,2]
[327301921,1715976638928,-37858.0,0.00012915,2]
[327301923,1715976638936,-5914.0,0.00012915,2]
[327301925,1715976638945,-1059.0,0.00012915,2]
[327301927,1715976638955,-1000.0,0.00012944,3]
[327301929,1715976638964,-189.95,0.00012964,2]
[327301931,1715976638972,-500.62,0.00012997,2]
[327301933,1715976638981,-264.53,0.00012997,2]
[327301935,1715976638990,-500.0,0.00012997,2]
[327301937,1715976638999,-500.0,0.00012997,2]
[327301939,1715976639008,-500.0,0.00012997,2]
[327301941,1715976639018,-327.47,0.00012997,2]
[327301943,1715976639027,-201.72,0.00012997,2]
[327301945,1715976639036,-500.0,0.00012997,2]
[327301947,1715976639045,-500.0,0.00012997,2]
[327301949,1715976639054,-182.04188806,0.00012997,2]
[327301951,1715976639063,-500.0,0.00012997,2]
[327301953,1715976639072,-500.0,0.00012997,2]
[327301955,1715976639081,-500.0,0.00012997,2]
[327301957,1715976639090,-223.52,0.00012997,2]
[327301959,1715976639100,-500.0,0.00012997,2]
[327301960,1715976639110,-2221.21263822,0.00012998,2]
[327301962,1715976639120,-507.88232033,0.00012998,2]
[327301964,1715976639129,-500.0,0.00012998,2]
[327301966,1715976639138,-390.4,0.00012998,2]
[327301968,1715976639148,-500.0,0.00012998,2]
[327301971,1715976639157,-581.94,0.00012998,2]
[327301972,1715976639167,-500.0,0.00012998,2]
[327301974,1715976639176,-354.13,0.00012998,2]
[327301976,1715976639185,-245.94,0.00012998,2]
[327301978,1715976639195,-509.33,0.00012998,2]
[327301980,1715976639204,-500.0,0.00012998,2]
[327301982,1715976639214,-500.0,0.00012998,2]
[327301985,1715976639224,-500.0,0.00012998,2]
[327301986,1715976639233,-500.0,0.00012998,2]
[327301988,1715976639242,-289.88,0.00012998,2]
[327301990,1715976639251,-500.0,0.00012998,2]
[327301992,1715976639260,-500.0,0.00012998,2]
[327301994,1715976639269,-614.79,0.00012998,2]
[327301996,1715976639278,-500.0,0.00012998,2]
[327301998,1715976639287,-1034.64124282,0.00012999,3]
[327302001,1715976639298,-413.05917474,0.00012999,2]
[327302003,1715976639308,-451.55281481,0.00012999,2]
[327302005,1715976639317,-624.96,0.00012999,2]
[327302007,1715976639326,-201.17,0.00012999,2]
[327302009,1715976639335,-500.0,0.00012999,2]
[327302011,1715976639344,-500.0,0.00012999,2]
[327302012,1715976639354,-373.2,0.00012999,2]
[327302014,1715976639363,-500.0,0.00012999,2]
[327302016,1715976639372,-321.15,0.00012999,2]
[327302018,1715976639381,-500.0,0.00012999,2]
[327302020,1715976639390,-303.17,0.00012999,2]
[327302022,1715976639400,-500.0,0.00012999,2]
[327302024,1715976639409,-500.0,0.00012999,2]
[327302026,1715976639418,-500.0,0.00012999,2]
[327302028,1715976639427,-313.65,0.00012999,2]
[327302030,1715976639436,-500.0,0.00012999,2]
[327302032,1715976639446,-268.14,0.00012999,2]
[327302034,1715976639455,-359.84,0.00012999,2]
[327302036,1715976639464,-500.0,0.00012999,2]
[327302038,1715976639473,-466.73,0.00012999,2]
[327302040,1715976639484,-500.0,0.00012999,2]
[327302042,1715976639493,-500.0,0.00012999,2]
[327302044,1715976639502,-385.78,0.00012999,2]
[327302046,1715976639511,-349.89,0.00012999,2]
[327302048,1715976639521,-500.0,0.00012999,2]
[327302050,1715976639530,-500.0,0.00012999,2]
[327302052,1715976639539,-500.0,0.00012999,2]
[327302054,1715976639548,-500.0,0.00012999,2]
[327302056,1715976639557,-500.0,0.00012999,2]
[327302058,1715976639567,-500.0,0.00012999,2]
[327302060,1715976639577,-500.0,0.00012999,2]
[327302062,1715976639586,-500.0,0.00012999,2]
[327302064,1715976639595,-500.0,0.00012999,2]
[327302066,1715976639605,-500.0,0.00012999,2]
[327302068,1715976639614,-500.0,0.00012999,2]
[327302070,1715976639624,-205.51,0.00012999,2]
[327302073,1715976639634,-500.0,0.00012999,2]
[327302074,1715976639643,-500.0,0.00012999,2]
[327302076,1715976639652,-500.0,0.00012999,2]
[327302078,1715976639661,-500.0,0.00012999,2]
[327302080,1715976639671,-500.0,0.00012999,2]
[327302083,1715976639681,-500.0,0.00012999,2]
[327302086,1715976639691,-500.0,0.00012999,2]
[327302088,1715976639700,-500.0,0.00012999,2]
[327302089,1715976639710,-500.0,0.00012999,2]
[327302092,1715976639720,-500.0,0.00012999,2]
[327302094,1715976639730,-500.0,0.00012999,2]
[327302095,1715976639741,-500.0,0.00012999,2]
[327302097,1715976639753,-500.0,0.00012999,2]
[327302100,1715976639763,-500.0,0.00012999,2]
[327302102,1715976639773,-386.99,0.00012999,2]
[327302103,1715976639782,-500.0,0.00012999,2]
[327302105,1715976639793,-500.0,0.00012999,2]
[327302107,1715976639803,-567.64,0.00012999,2]
[327302110,1715976639813,-268.67,0.00012999,2]
[327302112,1715976639826,-500.0,0.00012999,2]
[327302114,1715976639835,-500.0,0.00012999,2]
[327302116,1715976639845,-411.98,0.00012999,2]
[327302118,1715976639854,-516.3,0.00012999,2]
[327302120,1715976639864,-500.0,0.00012999,2]
[327302122,1715976639873,-500.0,0.00012999,2]
[327302124,1715976639882,-500.0,0.00012999,2]
[327302126,1715976639892,-315.68,0.00012999,2]
[327302127,1715976639901,-500.0,0.00012999,2]
[327302130,1715976639911,-500.0,0.00012999,2]
[327302132,1715976639922,-500.0,0.00012999,2]
[327302134,1715976639931,-500.0,0.00012999,2]
[327302135,1715976639940,-500.0,0.00012999,2]
[327302136,1715976639949,-500.0,0.00012999,2]
[327302137,1715976639958,-500.0,0.00012999,2]
[327302138,1715976639968,-500.0,0.00012999,2]
[327302139,1715976639977,-500.0,0.00012999,2]
[327302140,1715976639986,-500.0,0.00012999,2]
[327302141,1715976639996,-500.0,0.00012999,2]
[327302142,1715976640005,-500.0,0.00012999,2]
[327302143,1715976640014,-500.0,0.00012999,2]
[327302144,1715976640023,-500.0,0.00012999,2]
[327302145,1715976640032,-500.0,0.00012999,2]
[327302146,1715976640042,-500.0,0.00012999,2]
[327302147,1715976640051,-500.0,0.00012999,2]
[327302148,1715976640060,-500.0,0.00012999,2]
[327302149,1715976640069,-500.0,0.00012999,2]
[327302150,1715976640078,-500.0,0.00012999,2]
[327302152,1715976640087,-500.0,0.00012999,2]
[327302154,1715976640097,-309.9,0.00012999,2]
[327302156,1715976640106,-500.0,0.00012999,2]
[327302158,1715976640115,-500.0,0.00012999,2]
[327302160,1715976640124,-369.95,0.00012999,2]
[327302161,1715976640134,-500.0,0.00012999,2]
[327302163,1715976640143,-500.0,0.00012999,2]
[327302165,1715976640152,-500.0,0.00012999,2]
[327302167,1715976640162,-500.0,0.00012999,2]
[327302169,1715976640171,-500.0,0.00012999,2]
[327302171,1715976640180,-500.0,0.00012999,2]
[327302173,1715976640189,-500.0,0.00012999,2]
[327302175,1715976640199,-500.0,0.00012999,2]
[327302177,1715976640208,-500.0,0.00012999,2]
[327302179,1715976640218,-473.18229863,0.00012999,2]
[327302181,1715976640228,-500.0,0.00012999,2]
[327302183,1715976640239,-362.16,0.00012999,2]
[327302185,1715976640248,-500.0,0.00012999,2]
[327302187,1715976640258,-500.0,0.00012999,2]
[327302189,1715976640267,-500.0,0.00012999,2]
[327302191,1715976640276,-500.0,0.00012999,2]
[327302192,1715976640286,-500.0,0.00012999,2]
[327302194,1715976640296,-500.0,0.00012999,2]
[327302196,1715976640305,-184.44,0.00012999,2]
[327302198,1715976640314,-408.94009704,0.00012999,2]
[327302200,1715976640324,-500.0,0.00012999,2]
[327302202,1715976640334,-500.0,0.00012999,2]
[327302204,1715976640344,-500.0,0.00012999,2]
[327302206,1715976640353,-500.0,0.00012999,2]
[327302208,1715976640363,-500.0,0.00012999,2]
[327302210,1715976640373,-500.0,0.00012999,2]
[327302212,1715976640382,-500.0,0.00012999,2]
[327302214,1715976640392,-500.0,0.00012999,2]
[327302216,1715976640401,-500.0,0.00012999,2]
[327302218,1715976640411,-500.0,0.00012999,2]
[327302220,1715976640421,-500.0,0.00012999,2]
[327302222,1715976640430,-500.0,0.00012999,2]
[327302224,1715976640439,-444.60799685,0.00012999,2]
[327302227,1715976640449,-500.0,0.00012999,2]
[327302229,1715976640469,-500.0,0.00012999,2]
[327302231,1715976640478,-500.0,0.00012999,2]
[327302233,1715976640488,-500.0,0.00012999,2]
[327302235,1715976640499,-500.0,0.00012999,2]
[327302237,1715976640508,-500.0,0.00012999,2]
[327302239,1715976640518,-500.0,0.00012999,2]
[327302241,1715976640528,-353.62,0.00012999,2]
[327302243,1715976640538,-500.0,0.00012999,2]
[327302245,1715976640548,-500.0,0.00012999,2]
[327302247,1715976640558,-264.69,0.00012999,2]
[327302249,1715976640568,-500.0,0.00012999,2]
[327302251,1715976640578,-500.0,0.00012999,2]
[327302253,1715976640588,-500.0,0.00012999,2]
[327302255,1715976640598,-500.0,0.00012999,2]
[327302281,1715976640834,-500.0,0.00012999,2]
[327302283,1715976640846,-500.0,0.00012999,2]
[327302285,1715976640856,-500.0,0.00012999,2]
[327302287,1715976640865,-500.0,0.00012999,2]